[Event "*** Titled Tuesday 3|2 Blitz"]
[Site "Chess.com"]
[Date "2016.05.03"]
[Round "4"]
[White "maciek_92"]
[Black "Smirnov_Pavel"]
[Result "1-0"]
[WhiteElo "2583"]
[BlackElo "2481"]
[TimeControl "180+2"]
[EndTime "11:49:59 PDT"]
[Termination "maciek_92 won by checkmate"]

1. c4 {[%clk 0:02:54.4]} 1... e6 {[%clk 0:03:00.5]} 2. Nf3 {[%clk 0:02:54.5]}
2... d5 {[%clk 0:03:01.6]} 3. g3 {[%clk 0:02:55.5]} 3... Nf6 {[%clk 0:03:02.8]}
4. Bg2 {[%clk 0:02:56.9]} 4... Be7 {[%clk 0:03:04.2]} 5. O-O {[%clk 0:02:58.3]}
5... O-O {[%clk 0:03:05.4]} 6. b3 {[%clk 0:02:59.9]} 6... c5 {[%clk 0:03:06.6]}
7. cxd5 {[%clk 0:03:00]} 7... Nxd5 {[%clk 0:03:07.3]} 8. Bb2 {[%clk 0:02:58.6]}
8... b6 {[%clk 0:03:08.4]} 9. Nc3 {[%clk 0:02:53.9]} 9... Bb7 {[%clk 0:03:07.5]}
10. Nxd5 {[%clk 0:02:49.7]} 10... Bxd5 {[%clk 0:03:07.7]} 11. Qc2 {[%clk
0:02:48.9]} 11... Nd7 {[%clk 0:03:06.7]} 12. d3 {[%clk 0:02:41]} 12... Rc8
{[%clk 0:03:07.4]} 13. Rac1 {[%clk 0:02:39.3]} 13... Bf6 {[%clk 0:02:30.3]} 14.
Rfd1 {[%clk 0:02:34.8]} 14... Bb7 {[%clk 0:02:26.7]} 15. a3 {[%clk 0:02:27.1]}
15... Qe7 {[%clk 0:02:25.6]} 16. Qd2 {[%clk 0:02:22.6]} 16... a5 {[%clk
0:02:19.9]} 17. Rb1 {[%clk 0:02:12.8]} 17... Rfd8 {[%clk 0:01:59.7]} 18. Rdc1
{[%clk 0:02:02.8]} 18... h6 {[%clk 0:01:49.7]} 19. Qd1 {[%clk 0:01:54.1]} 19...
Bxb2 {[%clk 0:01:48.9]} 20. Rxb2 {[%clk 0:01:55]} 20... Nf6 {[%clk 0:01:47.6]}
21. b4 {[%clk 0:01:35.8]} 21... cxb4 {[%clk 0:01:44.5]} 22. axb4 {[%clk
0:01:37.7]} 22... axb4 {[%clk 0:01:44]} 23. Ra1 {[%clk 0:01:15.7]} 23... Nd5
{[%clk 0:01:41.5]} 24. Qd2 {[%clk 0:01:00.8]} 24... Nc3 {[%clk 0:01:32.6]} 25.
Ne1 {[%clk 0:00:47.4]} 25... Bxg2 {[%clk 0:01:19.1]} 26. Kxg2 {[%clk 0:00:47.5]}
26... Qf6 {[%clk 0:00:41.2]} 27. Nf3 {[%clk 0:00:28.2]} 27... e5 {[%clk
0:00:26.5]} 28. Qe3 {[%clk 0:00:22.1]} 28... e4 {[%clk 0:00:27.7]} 29. dxe4
{[%clk 0:00:23.7]} 29... Nd1 {[%clk 0:00:28.7]} 30. Rxd1 {[%clk 0:00:21.2]}
30... Rxd1 {[%clk 0:00:29.4]} 31. Rxb4 {[%clk 0:00:21.7]} 31... Rc6 {[%clk
0:00:26.7]} 32. e5 {[%clk 0:00:21.5]} 32... Qd8 {[%clk 0:00:27.4]} 33. h4 {[%clk
0:00:20.6]} 33... Rd5 {[%clk 0:00:23.3]} 34. Rg4 {[%clk 0:00:20.4]} 34... b5
{[%clk 0:00:22.9]} 35. Qb3 {[%clk 0:00:19.7]} 35... Re6 {[%clk 0:00:18.4]} 36.
Rb4 {[%clk 0:00:20.2]} 36... Rb6 {[%clk 0:00:15.4]} 37. e4 {[%clk 0:00:18.8]}
37... Rc5 {[%clk 0:00:13.9]} 38. Rd4 {[%clk 0:00:20.4]} 38... Qc7 {[%clk
0:00:14.4]} 39. Qd1 {[%clk 0:00:21.5]} 39... Rb7 {[%clk 0:00:12.6]} 40. Rd8+
{[%clk 0:00:21.2]} 40... Kh7 {[%clk 0:00:13.3]} 41. Ng5+ {[%clk 0:00:22.8]}
41... Kg6 {[%clk 0:00:14.2]} 42. h5+ {[%clk 0:00:24.2]} 42... Kxg5 {[%clk
0:00:15.4]} 43. f4# {[%clk 0:00:25.8]} 1-0

[Event "*** Titled Tuesday 3|2 Blitz"]
[Site "Chess.com"]
[Date "2016.05.03"]
[Round "4"]
[White "Iwannabetheguy"]
[Black "chess960now"]
[Result "0-1"]
[WhiteElo "1992"]
[BlackElo "1968"]
[TimeControl "180+2"]
[EndTime "11:50:05 PDT"]
[Termination "chess960now won by resignation"]

1. e4 {[%clk 0:03:01.9]} 1... c5 {[%clk 0:02:59.1]} 2. Nf3 {[%clk 0:03:02]} 2...
e6 {[%clk 0:02:58.9]} 3. d4 {[%clk 0:03:02.7]} 3... cxd4 {[%clk 0:02:59.8]} 4.
Nxd4 {[%clk 0:03:04.6]} 4... a6 {[%clk 0:02:58.5]} 5. Bd3 {[%clk 0:03:05.3]}
5... Qc7 {[%clk 0:02:58.4]} 6. Nc3 {[%clk 0:03:03.9]} 6... Bc5 {[%clk
0:02:58.6]} 7. Nb3 {[%clk 0:03:04.1]} 7... Ba7 {[%clk 0:02:59.1]} 8. Qg4 {[%clk
0:03:00.5]} 8... g6 {[%clk 0:02:44.7]} 9. Bf4 {[%clk 0:02:54.1]} 9... d6 {[%clk
0:02:42]} 10. Qg3 {[%clk 0:02:47.2]} 10... e5 {[%clk 0:02:36.2]} 11. Nd5 {[%clk
0:02:44.3]} 11... Qd8 {[%clk 0:02:14.5]} 12. Bg5 {[%clk 0:02:41.4]} 12... f6
{[%clk 0:02:08.7]} 13. Bd2 {[%clk 0:02:39.4]} 13... Be6 {[%clk 0:02:04.7]} 14.
Bc4 {[%clk 0:02:30.3]} 14... Nc6 {[%clk 0:01:51.1]} 15. O-O-O {[%clk 0:02:15.1]}
15... Bxd5 {[%clk 0:01:51.3]} 16. Bxd5 {[%clk 0:02:15.3]} 16... Qc7 {[%clk
0:01:49.9]} 17. Qh3 {[%clk 0:02:07.1]} 17... Nge7 {[%clk 0:01:47.1]} 18. Qe6
{[%clk 0:02:04.4]} 18... Rf8 {[%clk 0:01:36.4]} 19. Bh6 {[%clk 0:01:58.3]} 19...
Nd8 {[%clk 0:01:21.1]} 20. Qh3 {[%clk 0:01:36.7]} 20... Nxd5 {[%clk 0:01:14.3]}
21. Bxf8 {[%clk 0:01:33.4]} 21... Nb4 {[%clk 0:01:09.7]} 22. Rd2 {[%clk
0:01:13.5]} 22... Kxf8 {[%clk 0:01:07.5]} 23. a3 {[%clk 0:01:12.7]} 23... Nbc6
{[%clk 0:01:00.3]} 24. Rhd1 {[%clk 0:01:10.3]} 24... Rc8 {[%clk 0:00:39.5]} 25.
Rxd6 {[%clk 0:01:02.2]} 25... Nd4 {[%clk 0:00:27.3]} 26. Rxf6+ {[%clk
0:00:49.7]} 26... Kg7 {[%clk 0:00:20.2]} 27. Nxd4 {[%clk 0:00:42.7]} 27... exd4
{[%clk 0:00:12.6]} 28. Rd2 {[%clk 0:00:26.8]} 28... Kxf6 {[%clk 0:00:13.3]} 29.
Qh4+ {[%clk 0:00:26.7]} 29... Kg7 {[%clk 0:00:14.2]} 30. Qg5 {[%clk 0:00:24.9]}
30... Nf7 {[%clk 0:00:14.5]} 31. Qg4 {[%clk 0:00:24.2]} 31... Re8 {[%clk
0:00:10.5]} 32. f3 {[%clk 0:00:22.6]} 32... Ne5 {[%clk 0:00:10.8]} 33. Qg3
{[%clk 0:00:20.1]} 33... d3 {[%clk 0:00:11.3]} 34. Kd1 {[%clk 0:00:14.9]} 34...
Be3 {[%clk 0:00:10.3]} 35. Rxd3 {[%clk 0:00:14]} 35... Ba7 {[%clk 0:00:05.7]}
36. Rc3 {[%clk 0:00:14.8]} 36... Qd7+ {[%clk 0:00:06.6]} 37. Kc1 {[%clk
0:00:15.5]} 37... Nc6 {[%clk 0:00:06]} 38. Qf4 {[%clk 0:00:16.3]} 38... Rd8
{[%clk 0:00:06.9]} 39. Kb1 {[%clk 0:00:15.9]} 39... Qd1+ {[%clk 0:00:07.4]} 40.
Ka2 {[%clk 0:00:17.2]} 40... Qd6 {[%clk 0:00:09.1]} 41. Qe3 {[%clk 0:00:17.7]}
41... Bxe3 {[%clk 0:00:08.9]} 42. Rxe3 {[%clk 0:00:19]} 42... Qd2 {[%clk
0:00:09.2]} 43. Rc3 {[%clk 0:00:19.5]} 43... Qxg2 {[%clk 0:00:08.9]} 0-1

[Event "*** Titled Tuesday 3|2 Blitz"]
[Site "Chess.com"]
[Date "2016.05.03"]
[Round "4"]
[White "Rating-Schmating"]
[Black "vinceyoung15"]
[Result "1/2-1/2"]
[WhiteElo "2244"]
[BlackElo "2135"]
[TimeControl "180+2"]
[EndTime "11:50:10 PDT"]
[Termination "Game drawn by agreement"]

1. e4 {[%clk 0:03:01.9]} 1... c5 {[%clk 0:03:00.7]} 2. Nf3 {[%clk 0:03:00.8]}
2... Nc6 {[%clk 0:03:01.9]} 3. d4 {[%clk 0:03:00.5]} 3... cxd4 {[%clk
0:03:03.1]} 4. Nxd4 {[%clk 0:03:01.6]} 4... Qc7 {[%clk 0:03:04.6]} 5. c4 {[%clk
0:03:00.7]} 5... Qe5 {[%clk 0:03:05.2]} 6. Nxc6 {[%clk 0:02:53.4]} 6... Qxe4+
{[%clk 0:03:06.4]} 7. Qe2 {[%clk 0:02:53.2]} 7... Qxe2+ {[%clk 0:03:06.6]} 8.
Bxe2 {[%clk 0:02:53.6]} 8... bxc6 {[%clk 0:03:08.2]} 9. Nc3 {[%clk 0:02:54.9]}
9... Nf6 {[%clk 0:03:08.9]} 10. Be3 {[%clk 0:02:55.9]} 10... e6 {[%clk
0:03:09.6]} 11. O-O-O {[%clk 0:02:56.6]} 11... Bb4 {[%clk 0:02:59.7]} 12. a3
{[%clk 0:02:52]} 12... Be7 {[%clk 0:03:00.5]} 13. Rhe1 {[%clk 0:02:46]} 13...
O-O {[%clk 0:03:01]} 14. Bf3 {[%clk 0:02:46.5]} 14... d5 {[%clk 0:03:00.8]} 15.
cxd5 {[%clk 0:02:47.6]} 15... cxd5 {[%clk 0:03:02]} 16. Bg5 {[%clk 0:02:47.9]}
16... h6 {[%clk 0:02:45.6]} 17. Bf4 {[%clk 0:02:46.6]} 17... Re8 {[%clk
0:02:37.8]} 18. Nb5 {[%clk 0:02:44.4]} 18... Bd7 {[%clk 0:02:37.1]} 19. Nc7
{[%clk 0:02:42]} 19... Rac8 {[%clk 0:02:37]} 20. Kb1 {[%clk 0:02:43.3]} 20...
Red8 {[%clk 0:02:27.3]} 21. Nxd5 {[%clk 0:02:41.7]} 21... Nxd5 {[%clk
0:02:19.5]} 22. Bxd5 {[%clk 0:02:42.2]} 22... Ba4 {[%clk 0:02:20.7]} 23. b3
{[%clk 0:02:38.6]} 23... Bxa3 {[%clk 0:01:51]} 24. Bxe6 {[%clk 0:02:28.2]} 24...
fxe6 {[%clk 0:01:44.2]} 25. Rxd8+ {[%clk 0:02:23.6]} 25... Rxd8 {[%clk
0:01:44.7]} 26. bxa4 {[%clk 0:02:25]} 26... Kf7 {[%clk 0:01:40.1]} 27. Re3
{[%clk 0:02:22.7]} 27... Bc5 {[%clk 0:01:37.1]} 28. Rc3 {[%clk 0:02:20.2]} 28...
Bb6 {[%clk 0:01:31.9]} 29. Kc2 {[%clk 0:02:17.2]} 29... Rd4 {[%clk 0:01:29.1]}
30. Be5 {[%clk 0:02:05.4]} 30... Rxa4 {[%clk 0:01:25.5]} 31. Rf3+ {[%clk
0:02:06.3]} 31... Kg8 {[%clk 0:01:17.5]} 32. Rg3 {[%clk 0:02:04.4]} 32... g5
{[%clk 0:01:15.9]} 33. Kb3 {[%clk 0:02:01.7]} 33... Re4 {[%clk 0:01:12.5]} 34.
Bc3 {[%clk 0:02:00.5]} 34... Bxf2 {[%clk 0:01:11.1]} 35. Rf3 {[%clk 0:02:01.5]}
35... Bb6 {[%clk 0:01:00.1]} 36. Rf6 {[%clk 0:02:02.1]} 36... Re3 {[%clk
0:00:58.5]} 37. Kc4 {[%clk 0:02:00.3]} 37... Re4+ {[%clk 0:00:48.4]} 38. Kd3
{[%clk 0:01:58.5]} 38... Re3+ {[%clk 0:00:43.5]} 39. Kd2 {[%clk 0:01:59.3]}
39... Re4 {[%clk 0:00:33.2]} 40. Rg6+ {[%clk 0:01:56.8]} 40... Kf7 {[%clk
0:00:31.3]} 41. Rxh6 {[%clk 0:01:56.4]} 41... e5 {[%clk 0:00:30.1]} 42. Kd3
{[%clk 0:01:55.2]} 42... Re3+ {[%clk 0:00:31.1]} 43. Kd2 {[%clk 0:01:56.3]}
43... Bd4 {[%clk 0:00:28.7]} 44. Bxd4 {[%clk 0:01:54.5]} 44... exd4 {[%clk
0:00:30.1]} 45. Rh7+ {[%clk 0:01:55.6]} 45... Kg6 {[%clk 0:00:30.5]} 46. Rxa7
{[%clk 0:01:56.5]} 46... Rb3 {[%clk 0:00:31.6]} 47. Kc2 {[%clk 0:01:52]} 47...
Rc3+ {[%clk 0:00:29.8]} 48. Kd2 {[%clk 0:01:53.1]} 48... Rb3 {[%clk 0:00:31]}
49. Kc2 {[%clk 0:01:49.9]} 49... Re3 {[%clk 0:00:31.4]} 50. Kd2 {[%clk
0:01:49.8]} 50... Rb3 {[%clk 0:00:32.4]} 51. Kc2 {[%clk 0:01:50.7]} 51... Rc3+
{[%clk 0:00:33.8]} 52. Kd2 {[%clk 0:01:51.7]} 52... Rb3 {[%clk 0:00:35.2]} 53.
Kc2 {[%clk 0:01:45.2]} 53... Re3 {[%clk 0:00:31.2]} 54. Kd2 {[%clk 0:01:42.6]}
54... Kf5 {[%clk 0:00:25.4]} 55. Rd7 {[%clk 0:01:39.5]} 55... Ra3 {[%clk
0:00:22.2]} 56. Rxd4 {[%clk 0:01:31.5]} 56... Ra2+ {[%clk 0:00:22.7]} 57. Ke3
{[%clk 0:01:30.8]} 57... Rxg2 {[%clk 0:00:24.1]} 58. h4 {[%clk 0:01:25.5]} 58...
g4 {[%clk 0:00:18.1]} 59. Rd5+ {[%clk 0:01:26.6]} 59... Kg6 {[%clk 0:00:19]} 60.
Rg5+ {[%clk 0:01:27.5]} 60... Kh6 {[%clk 0:00:20.5]} 61. Kf4 {[%clk 0:01:27.7]}
61... g3 {[%clk 0:00:19.4]} 62. Kf3 {[%clk 0:01:27.4]} 62... Rg1 {[%clk
0:00:20]} 63. Rxg3 {[%clk 0:01:28.8]} 63... Rxg3+ {[%clk 0:00:21.3]} 64. Kxg3
{[%clk 0:01:30.2]} 64... Kh5 {[%clk 0:00:23.2]} 1/2-1/2

[Event "*** Titled Tuesday 3|2 Blitz"]
[Site "Chess.com"]
[Date "2016.05.03"]
[Round "4"]
[White "yian123"]
[Black "Hikaru"]
[Result "0-1"]
[WhiteElo "2468"]
[BlackElo "2858"]
[TimeControl "180+2"]
[EndTime "11:50:15 PDT"]
[Termination "Hikaru won by resignation"]

1. e4 {[%clk 0:03:01.9]} 1... g6 {[%clk 0:03:01.9]} 2. d4 {[%clk 0:03:02.7]}
2... Bg7 {[%clk 0:03:03.8]} 3. Nc3 {[%clk 0:03:04.2]} 3... d6 {[%clk 0:03:04.8]}
4. Be3 {[%clk 0:03:01.7]} 4... a6 {[%clk 0:03:05.6]} 5. h4 {[%clk 0:03:00.1]}
5... Nf6 {[%clk 0:03:06.2]} 6. f3 {[%clk 0:03:00.8]} 6... b5 {[%clk 0:03:06.2]}
7. Qd2 {[%clk 0:02:59.4]} 7... h5 {[%clk 0:03:04.1]} 8. Nh3 {[%clk 0:02:59.8]}
8... Bxh3 {[%clk 0:03:04.6]} 9. Rxh3 {[%clk 0:03:00.9]} 9... Nbd7 {[%clk
0:03:06.5]} 10. g3 {[%clk 0:02:53.3]} 10... c5 {[%clk 0:03:05.2]} 11. dxc5
{[%clk 0:02:48.5]} 11... dxc5 {[%clk 0:03:05.5]} 12. a4 {[%clk 0:02:45.5]} 12...
b4 {[%clk 0:03:05.9]} 13. Nd1 {[%clk 0:02:44.6]} 13... O-O {[%clk 0:03:03]} 14.
Be2 {[%clk 0:02:27]} 14... Qc7 {[%clk 0:02:59.6]} 15. Kf2 {[%clk 0:02:23.8]}
15... Rfd8 {[%clk 0:02:56.6]} 16. Qc1 {[%clk 0:02:24.3]} 16... a5 {[%clk
0:02:56.5]} 17. Kg2 {[%clk 0:02:24.8]} 17... c4 {[%clk 0:02:57.1]} 18. Nf2
{[%clk 0:02:25.3]} 18... Qc6 {[%clk 0:02:58.7]} 19. b3 {[%clk 0:02:21.6]} 19...
Ne5 {[%clk 0:02:55.1]} 20. Rh1 {[%clk 0:02:16.9]} 20... Nfd7 {[%clk 0:02:52.6]}
21. Rb1 {[%clk 0:02:13.2]} 21... Nc5 {[%clk 0:02:51.4]} 22. Rd1 {[%clk
0:02:10.3]} 22... Ne6 {[%clk 0:02:41]} 23. f4 {[%clk 0:02:06.9]} 23... Ng4
{[%clk 0:02:41.5]} 24. Bxg4 {[%clk 0:01:47.5]} 24... hxg4 {[%clk 0:02:43.4]} 25.
Rxd8+ {[%clk 0:01:45.8]} 25... Rxd8 {[%clk 0:02:44]} 26. Qf1 {[%clk 0:01:46.4]}
26... Bd4 {[%clk 0:02:15.8]} 27. Re1 {[%clk 0:01:32.1]} 27... cxb3 {[%clk
0:02:11.4]} 28. cxb3 {[%clk 0:01:31.6]} 28... Qc3 {[%clk 0:02:11.6]} 29. Bxd4
{[%clk 0:01:11.1]} 29... Qf3+ {[%clk 0:02:11.6]} 30. Kh2 {[%clk 0:01:03.4]}
30... Rxd4 {[%clk 0:02:09.4]} 31. Qe2 {[%clk 0:00:58.2]} 31... Qxb3 {[%clk
0:01:58.9]} 32. f5 {[%clk 0:00:55.7]} 32... gxf5 {[%clk 0:01:19.7]} 33. exf5
{[%clk 0:00:54.7]} 33... Ng7 {[%clk 0:01:21.3]} 34. Qxe7 {[%clk 0:00:50.4]}
34... Rd2 {[%clk 0:01:22.2]} 35. Re2 {[%clk 0:00:44.7]} 35... Qa2 {[%clk
0:01:10.3]} 36. Rxd2 {[%clk 0:00:36.1]} 36... Qxd2 {[%clk 0:01:10]} 37. Kg1
{[%clk 0:00:30.5]} 37... b3 {[%clk 0:01:11.3]} 38. Ne4 {[%clk 0:00:21]} 38...
Qc1+ {[%clk 0:00:47.8]} 39. Kh2 {[%clk 0:00:20]} 39... Qc2+ {[%clk 0:00:48.7]}
40. Kg1 {[%clk 0:00:20.4]} 40... Qc1+ {[%clk 0:00:28.5]} 41. Kh2 {[%clk
0:00:19.6]} 41... Qc2+ {[%clk 0:00:30]} 42. Kg1 {[%clk 0:00:20.5]} 42... Qc8
{[%clk 0:00:31.7]} 43. Nf6+ {[%clk 0:00:09.1]} 43... Kh8 {[%clk 0:00:32.9]} 44.
Qe5 {[%clk 0:00:10]} 44... Nxf5 {[%clk 0:00:18.8]} 45. Nd7+ {[%clk 0:00:09.5]}
45... Kg8 {[%clk 0:00:20.4]} 46. Qxf5 {[%clk 0:00:10]} 46... Qc1+ {[%clk
0:00:22.1]} 47. Kf2 {[%clk 0:00:09.4]} 47... Qc2+ {[%clk 0:00:23.1]} 0-1

[Event "*** Titled Tuesday 3|2 Blitz"]
[Site "Chess.com"]
[Date "2016.05.03"]
[Round "4"]
[White "flavettes"]
[Black "rasool78"]
[Result "1-0"]
[WhiteElo "2378"]
[BlackElo "2182"]
[TimeControl "180+2"]
[EndTime "11:50:25 PDT"]
[Termination "flavettes won on time"]

1. d4 {[%clk 0:03:01.9]} 1... g6 {[%clk 0:03:00.2]} 2. c4 {[%clk 0:03:02.6]}
2... Bg7 {[%clk 0:03:01.5]} 3. e4 {[%clk 0:03:03.5]} 3... c5 {[%clk 0:03:00.4]}
4. d5 {[%clk 0:03:04.4]} 4... d6 {[%clk 0:03:01.7]} 5. Nc3 {[%clk 0:03:05.4]}
5... Nf6 {[%clk 0:02:54]} 6. Bd3 {[%clk 0:03:05.9]} 6... O-O {[%clk 0:02:54.2]}
7. h3 {[%clk 0:03:06.2]} 7... Na6 {[%clk 0:02:54.8]} 8. Nf3 {[%clk 0:03:04.3]}
8... Nc7 {[%clk 0:02:55.5]} 9. O-O {[%clk 0:03:05.2]} 9... e6 {[%clk 0:02:47.4]}
10. Re1 {[%clk 0:03:04]} 10... e5 {[%clk 0:02:41.3]} 11. a3 {[%clk 0:03:02.3]}
11... Nd7 {[%clk 0:02:26.4]} 12. b4 {[%clk 0:02:53.3]} 12... b6 {[%clk
0:02:25.3]} 13. Nb5 {[%clk 0:02:42.6]} 13... Nxb5 {[%clk 0:02:21.7]} 14. cxb5
{[%clk 0:02:44.5]} 14... h6 {[%clk 0:02:15]} 15. Nd2 {[%clk 0:02:45.2]} 15... f5
{[%clk 0:02:04.3]} 16. Nc4 {[%clk 0:02:45.6]} 16... Nf6 {[%clk 0:01:59.2]} 17.
bxc5 {[%clk 0:02:42.2]} 17... bxc5 {[%clk 0:01:37.1]} 18. f3 {[%clk 0:02:32.6]}
18... fxe4 {[%clk 0:01:29]} 19. fxe4 {[%clk 0:02:33.1]} 19... Nh5 {[%clk
0:01:26.6]} 20. Be3 {[%clk 0:02:17]} 20... Nf4 {[%clk 0:01:12.7]} 21. Bf1 {[%clk
0:02:17.7]} 21... Rf7 {[%clk 0:00:51.9]} 22. Kh2 {[%clk 0:02:11.6]} 22... Bf8
{[%clk 0:00:30.6]} 23. g3 {[%clk 0:01:53.9]} 23... Nh5 {[%clk 0:00:30.2]} 24.
Bg2 {[%clk 0:01:50.5]} 24... Bd7 {[%clk 0:00:24]} 25. a4 {[%clk 0:01:51.4]}
25... Nf6 {[%clk 0:00:16.1]} 26. Qd2 {[%clk 0:01:47.4]} 26... Kh7 {[%clk
0:00:16.1]} 27. Rab1 {[%clk 0:01:45]} 27... Qe7 {[%clk 0:00:16.4]} 28. a5 {[%clk
0:01:37.6]} 28... Rb8 {[%clk 0:00:17.3]} 29. b6 {[%clk 0:01:36.8]} 29... a6
{[%clk 0:00:18.7]} 30. Qc2 {[%clk 0:01:18.1]} 30... Bb5 {[%clk 0:00:16.1]} 31.
Bf1 {[%clk 0:01:19]} 31... Nh5 {[%clk 0:00:11.5]} 32. Be2 {[%clk 0:01:16.4]}
32... Qd7 {[%clk 0:00:10.5]} 33. Rf1 {[%clk 0:01:04.4]} 33... Rxf1 {[%clk
0:00:07.6]} 34. Rxf1 {[%clk 0:01:04.7]} 34... Bg7 {[%clk 0:00:08.9]} 35. Na3
{[%clk 0:00:49.9]} 35... Nf6 {[%clk 0:00:06.4]} 36. Nxb5 {[%clk 0:00:41.6]}
36... axb5 {[%clk 0:00:07.4]} 37. Rb1 {[%clk 0:00:42.8]} 37... c4 {[%clk
0:00:07.1]} 38. a6 {[%clk 0:00:42.2]} 38... Nh5 {[%clk 0:00:04.3]} 39. Qb2
{[%clk 0:00:34.6]} 39... Qf7 {[%clk 0:00:02]} 40. Qxb5 {[%clk 0:00:28.9]} 40...
c3 {[%clk 0:00:02.5]} 41. a7 {[%clk 0:00:24.4]} 41... c2 {[%clk 0:00:02.4]} 42.
Rc1 {[%clk 0:00:24.3]} 1-0

[Event "*** Titled Tuesday 3|2 Blitz"]
[Site "Chess.com"]
[Date "2016.05.03"]
[Round "4"]
[White "psv98"]
[Black "KuzubovYuriy"]
[Result "0-1"]
[WhiteElo "2472"]
[BlackElo "2597"]
[TimeControl "180+2"]
[EndTime "11:50:30 PDT"]
[Termination "KuzubovYuriy won by resignation"]

1. Nf3 {[%clk 0:03:01.9]} 1... d5 {[%clk 0:03:00]} 2. g3 {[%clk 0:03:01.7]} 2...
Bg4 {[%clk 0:03:00.9]} 3. Bg2 {[%clk 0:03:02]} 3... Nd7 {[%clk 0:03:02]} 4. O-O
{[%clk 0:03:02.3]} 4... c6 {[%clk 0:03:02.3]} 5. d3 {[%clk 0:02:53.1]} 5... e5
{[%clk 0:03:02.6]} 6. e4 {[%clk 0:02:47.3]} 6... dxe4 {[%clk 0:02:59.7]} 7. dxe4
{[%clk 0:02:47.3]} 7... Bc5 {[%clk 0:03:00.8]} 8. Nbd2 {[%clk 0:02:42.7]} 8...
a5 {[%clk 0:03:00.3]} 9. Qe1 {[%clk 0:02:41.4]} 9... a4 {[%clk 0:02:59.7]} 10.
h3 {[%clk 0:02:39.7]} 10... Bh5 {[%clk 0:02:59.2]} 11. Nh4 {[%clk 0:02:22.3]}
11... Ne7 {[%clk 0:02:55.6]} 12. Nc4 {[%clk 0:02:21.9]} 12... O-O {[%clk
0:02:53.3]} 13. Be3 {[%clk 0:02:16.8]} 13... Qc7 {[%clk 0:02:49.9]} 14. Bxc5
{[%clk 0:01:57.9]} 14... Nxc5 {[%clk 0:02:50.7]} 15. Qc3 {[%clk 0:01:59.5]}
15... f6 {[%clk 0:02:46.4]} 16. Nf5 {[%clk 0:01:50.7]} 16... Nxf5 {[%clk
0:02:42.1]} 17. exf5 {[%clk 0:01:52.6]} 17... Rfd8 {[%clk 0:02:35.6]} 18. Ne3
{[%clk 0:01:42.4]} 18... Qe7 {[%clk 0:02:06.4]} 19. b4 {[%clk 0:01:35.8]} 19...
Na6 {[%clk 0:01:42.9]} 20. a3 {[%clk 0:01:25.7]} 20... Nc7 {[%clk 0:01:42.4]}
21. g4 {[%clk 0:01:01.8]} 21... Bf7 {[%clk 0:01:40.3]} 22. Rad1 {[%clk 0:01:03]}
22... Nb5 {[%clk 0:01:40.2]} 23. Qb2 {[%clk 0:01:03.8]} 23... Kf8 {[%clk
0:01:12]} 24. c4 {[%clk 0:01:02.4]} 24... Nd4 {[%clk 0:01:11.6]} 25. b5 {[%clk
0:01:03.4]} 25... Qc5 {[%clk 0:01:08.3]} 26. Rb1 {[%clk 0:00:41.5]} 26... Nb3
{[%clk 0:01:02.7]} 27. Rfd1 {[%clk 0:00:30.7]} 27... Rd4 {[%clk 0:01:01.9]} 28.
bxc6 {[%clk 0:00:25.3]} 28... bxc6 {[%clk 0:01:02.6]} 29. Nc2 {[%clk 0:00:26.9]}
29... Rxd1+ {[%clk 0:00:22.8]} 30. Rxd1 {[%clk 0:00:28.8]} 30... Ke7 {[%clk
0:00:21.4]} 31. Nb4 {[%clk 0:00:30]} 31... Be8 {[%clk 0:00:22.3]} 32. Qe2 {[%clk
0:00:27.9]} 32... Rd8 {[%clk 0:00:22.9]} 33. Rxd8 {[%clk 0:00:20.6]} 33... Kxd8
{[%clk 0:00:24.8]} 34. Qe4 {[%clk 0:00:16.3]} 34... Nd4 {[%clk 0:00:24.8]} 35.
Kh2 {[%clk 0:00:14.7]} 35... Kd7 {[%clk 0:00:23.6]} 36. f4 {[%clk 0:00:13.8]}
36... exf4 {[%clk 0:00:19.5]} 37. Qxf4 {[%clk 0:00:14.7]} 37... Qd6 {[%clk
0:00:19.6]} 38. Qxd6+ {[%clk 0:00:10.5]} 38... Kxd6 {[%clk 0:00:21.5]} 39. Nd3
{[%clk 0:00:09.5]} 39... c5 {[%clk 0:00:22.5]} 40. Be4 {[%clk 0:00:08.5]} 40...
Nc2 {[%clk 0:00:19]} 41. Nxc5 {[%clk 0:00:07.2]} 41... Nxa3 {[%clk 0:00:19.5]}
42. Ne6 {[%clk 0:00:02.9]} 42... Nxc4 {[%clk 0:00:18.8]} 43. Nxg7 {[%clk
0:00:04.5]} 43... Bf7 {[%clk 0:00:19.8]} 44. h4 {[%clk 0:00:03.9]} 44... a3
{[%clk 0:00:20.7]} 45. Bb1 {[%clk 0:00:04.4]} 45... Nd2 {[%clk 0:00:21.5]} 0-1